{"text_format":"1","workbook":"xlsx","n_sheets":5,"sheets":["Klassieke financiering","Infrastructuurforfait PMH","Blad16","Blad17","Blad1"],"not_rendered":{"charts":0,"images":0,"macros":1,"external_links":0,"defined_names":3,"comments":0,"pivot_tables":0},"unopened":[],"bounds":{"document_bytes":16777216,"sheet_cells":100000,"rows_first":2000,"rows_last":500,"rows_between":2000,"halvings":0,"cell_chars":16384,"cell_head_chars":4096},"cells_cut":0,"cells_raw":0,"read":"whole","date_system":"1900"}

{"sheet":"Klassieke financiering","index":0,"n_rows":46,"n_cols":9,"rows_kept":46,"cut":false,"hidden":false,"merged":[[0,0,0,7],[36,1,36,2],[3,0,3,5],[14,0,14,5],[1,0,1,7],[19,0,19,5],[24,0,24,5]]}
["Goedgekeurde projecten klassieke subsidies van 1 januari tot 31 december 2025"]
["Klassieke betoelaging: een voorziening kan een vraag indienen tot het bekomen van investeringsbetoelaging (= subsidiebelofte) voor een beoogde investering. Het bedrag van de investeringsbetoelaging wordt aangerekend op de VIPA-kredieten op het moment van het verlenen van de subsidiebelofte. De subsidiebetalingen gebeuren in 5 schijven op basis van voorgelegde facturen. De subsidiebelofte wordt met 50% geïndexeerd op het moment van het aanvangsbevel van de werken en 50% op het moment van de ingebruikname."]
["Dossiernummer","Provincie","Gemeente\nvoorziening","Initiatiefnemer","Voorziening","Project","Verleende \nsubsidiebeloften","Goedkeuring"]
["Voorzieningen Opgroeien",null,null,null,null,null,{"$f":"SUM(G5:G14)","v":903945.4604814112}]
["BJB162-A-MV","Antwerpen","Antwerpen","Pleegzorg Provincie Antwerpen vzw","Pleegzorg Provincie Antwerpen - afdeling Antwerpen-Zuid","verbouwing van een kantoorgebouw in de Heilig Hartstraat 12-14 en de Uitbreidingstraat 184 in Antwerpen",73279.55,"aanvullende belofte\ndoor indexering \nna ingebruikname\n17/01/2025"]
["20K145","Limburg","Halen","Familiehulp kinderopvang De Speelboom vzw","De Speelboom Halen","voltooiingswerken voor het Kinderdagverblijf 't Pagadderke voor 28 plaatsen (capaciteitsvervanging) in de Doelstraat 26-30 te Halen",67913.14,"aanvullende belofte\ndoor indexering \nna ingebruikname\n30/01/2025"]
["20K059","Brussel","Schaarbeek","t Pasrel vzw","Onthaal-, Oriëntatie- en Observatiecentrum 't Pasrel ","nieuwbouw voor het Onthaal-, Oriëntatie- en Observatiecentrum 't Pasrel Brussel in de Wilderstraat in Sint-Agatha-Berchem",14577.234748029732,"aanvullende belofte\ndoor indexering \nna aanvangsbevel\n5/02/2025"]
["22K041","West-Vlaanderen","Oostende","Familiehulp Kinderopvang \nDe Speelboom vzw","De Speelboom Oostende-Centrum","nieuwbouw van een kinderdagverblijf met 87 plaatsen (capaciteitsvervanging) op het Mispelplein in Oostende",64558.350353064016,"aanvullende belofte\ndoor indexering \nna aanvangsbevel\n12/02/2025"]
["22K060","Oost-Vlaanderen","Sint-Niklaas","Kaldoun BVBA","Het Droomwolkje 3","uitbreiding voor de Kinderopvang Het Droomwolkje 3 met 17 plaatsen (capaciteitsvervanging) in de Boonhemstraat 2 in Sint-Niklaas",6791.8319067477714,"aanvullende belofte\ndoor indexering \nna aanvangsbevel\n12/02/2025"]
["22K013","Limburg","Kinrooi","Jeugdzorgcentrum vzw","Organisatie voor Bijzondere Jeugdzorg Jeugdzorgcentrum","nieuwbouw van een jeugdzorgcentrum voor 20 jongeren (capaciteitsvervanging) in de Spoorwegstraat 20-22 in Maaseik",31160.07,"aanvullende belofte\ndoor indexering \nna aanvangsbevel\n18/02/2025"]
["23K051","Vlaams-Brabant","Sint-Genesius-Rode","Consolata Regio Sint-Genesius-Rode vzw","'t Kapoentje","nieuwbouw van een kinderdagverblijf voor 23 plaatsen (capaciteitsuitbreiding) op Zorgsite Sint-Genesius-Rode in de Zoniënwoudlaan in Sint-Genesius-Rode",5221.8034735695692,"aanvullende belofte\ndoor indexering \nna aanvangsbevel\n28/02/2025"]
["21K039","Antwerpen","Temse","Helan Kinderopvang vzw","Helan Kinderopvang - Tijgertuin","ingrijpende duurzame verbouwing voor kinderopvang Tijgertuin met 28 plaatsen in de Antwerpsestraat 180 in Temse",1025.5,"aanvullende belofte\ndoor indexering \nna aanvangsbevel\n28/02/2025"]
["20K023","Antwerpen","Brasschaat","Kinderdagverblijf Augustijntje vzw","Augustijntje","nieuwbouw van een kinderopvang voor 28 plaatsen in de Augustijnslei 54 in Brasschaat",633344.92000000004,"2025-03-24"]
["23K012","Limburg","Gingelom","OCMW Gingelom","Minimax","verbouwing van de kinderopvang Minimax met 40 plaatsen op de Steenweg 107 - 109 - 111 in Gingelom",6073.06,"2025-03-24","deel op budget 2024,\ndeel op budget 2025"]
["Woonzorgvoorzieningen",null,null,null,null,null,{"$f":"SUM(G16:G19)","v":46989.30741594806}]
["23K033","Antwerpen","Geel","OCMW Welzijnszorg Kempen","Welzijnszorg Kempen","nieuwbouw voor een centrum voor dagopvang op de campus Lindelo op het Kerkplein 20 B in Lille ",3274.64,"aanvullende belofte\ndoor indexering \nna aanvangsbevel\n6/01/2025"]
["21K054","Antwerpen","Grobbendonk","OCMW Grobbendonk","Lokaal Dienstencentrum OCMW Grobbendonk","nieuwbouw van een antennepunt voor een bestaand lokaal dienstencentrum in de Kasteeldreef 1 in Grobbendonk (Bouwel)",8442.1456542438245,"aanvullende belofte\ndoor indexering \nna aanvangsbevel\n5/02/2025"]
["23K006","Antwerpen","Duffel","OCMW Duffel","Lokaal Dienstecentrum Duffel","uitbreiding en verbouwing van een lokaal dienstencentrum (capaciteitsuitbreiding) in de Kwakkelenberg 3 in Duffel",10177.115583455074,"aanvullende belofte\ndoor indexering \nna aanvangsbevel\n28/02/2025"]
["22K039","Antwerpen","Balen","OCMW Balen","Lokaal Dienstencentrum","nieuwbouw van een lokaal dienstencentrum in de Rozestraat 11 in Balen",25095.406178249163,"aanvullende belofte\ndoor indexering \nna aanvangsbevel\n4/03/2025"]
["Voorzieningen voor Preventieve en ambulante Gezondheidszorg",null,null,null,null,null,{"$f":"SUM(G21:G24)","v":1242215.1605090236}]
["21K063","Brussel","Sint-Jans-Molenbeek","Wijkgezondheidscentrum De Brug vzw","Wijkgezondheidscentrum De Brug","uitbreiding en een beperkte verbouwing voor het Wijkgezondheidscentrum De Brug in de Onafhankelijkheidsstraat 142-144 in Sint-Jans-Molenbeek",16622.72993333335,"aanvullende belofte\ndoor indexering \nna aanvangsbevel\n5/02/2025"]
["21K010","Antwerpen","Lier","Wijkgezondheidscentrum De Zilveren Knoop vzw","Wijkgezondheidscentrum De Zilveren Knoop","ingrijpende duurzame verbouwing en uitbreiding voor het Wijkgezondheidscentrum De Zilveren Knoop, met minder dan 2.000 patiënten, in de Lisperstraat 108 in Lier",16730.27095649828,"aanvullende belofte\ndoor indexering \nna aanvangsbevel\n24/02/2025"]
["20K171","Antwerpen","Antwerpen","Centrum voor Geestelijke Gezondheidszorg Andante vzw","Centrum voor Geestelijke Gezondheidszorg Andante","ingrijpende duurzame verbouwing en uitbreiding van de brouwerijsite voor het Centrum voor Geestelijke Gezondheidszorg Andante in de Hertstraat 5 in Antwerpen (Deurne)",94571.879619191866,"aanvullende belofte\ndoor indexering \nna aanvangsbevel\n18/03/2025"]
["20K175","Antwerpen","Mechelen","Wel en Wee vzw","Wijkgezondheidscentrum Wel en Wee","nieuwbouw voor het Wijkgezondheidscentrum Wel en Wee voor 2.500 patiënten in de Zwartzustersvest 47 in Mechelen",1114290.28,"2025-04-05"]
["Voorzieningen voor Personen met een handicap",null,null,null,null,null,{"$f":"SUM(G26:G34)","v":530766.59195828333}]
["20K177","West-Vlaanderen","Zedelgem","Inspirant vzw","Multifunctioneel Centrum Inspirant","uitbreiding van het Multifunctioneel Centrum Inspirant met een internaat voor 5 minderjarigen (capaciteitsvervanging) in de Sportlaan 20 in Zedelgem (Aartrijke)",111198.49,"aanvullende belofte\ndoor indexering \nna ingebruikname\n30/01/2025"]
["21K075","West-Vlaanderen","Zedelgem","Inspirant vzw","Multifunctioneel Centrum Inspirant","uitbreiding van het Multifunctioneel Centrum Inspirant met een internaat voor 5 minderjarigen (capaciteitsvervanging) in de Sportlaan 20 in Zedelgem (Aartrijke)",12495.93,"aanvullende belofte\ndoor indexering \nna ingebruikname\n30/01/2025"]
["22K006","Limburg","Peer","Begeleidingscentrum Sint-Elisabeth vzw","Sint-Elisabeth","nieuwbouw van een Multifunctioneel Centrum voor een GES-project voor 20 personen (capaciteitsvervanging) met ernstige gedrags- en emotionele problemen in de Sint-Elisabethlaan 20 in Peer (Wijchmaal)",45698.63704195281,"aanvullende belofte\ndoor indexering \nna aanvangsbevel\n11/03/2025"]
["24BU024","West-Vlaanderen","Oostende","Centrum voor Ambulante Revalidatie Stappie vzw","Centrum voor Ambulante Revalidatie Stappie","aankoop bijzondere uitrusting: een tympanometer en een Aurical Hitbox voor het Centrum voor Ambulante Revalidatie Stappie in de Koninginnelaan 55-57 in Oostende",211.40491633061902,"aanvullende belofte\ndoor indexering \nna bestelling\n24/03/2025"]
["20K020","Oost-Vlaanderen","Lokeren","Zorg en Onderwijs De Hagewinde vzw","De Hagewinde","nieuwbouw van 2 zorggroepen voor 22 verblijfplaatsen (capaciteitsvervanging) in de Poststraat 6 in Lokeren",243989.09,"aanvullende belofte\ndoor indexering \nna aanvangsbevel\n25/03/2025"]
["24BU122\nVAPH-Inge","Oost-Vlaanderen","Gent","Centrum voor Ambulante Revalidatie Impuls vzw","Centrum voor Ambulante Revalidatie Impuls","aankoop van bijzondere uitrusting: een nieuw computerpark: vervangen van de firewall, laptops, schermen, headsets, beamer en caremanager voor het Centrum voor Ambulante Revalidatie Impuls in de Karel Lodewijk Dierickxstraat 30 in Gent",37091.06,"2025-04-05"]
["24BU123\nVAPH-Inge","Oost-Vlaanderen","Gent","Centrum voor Ambulante Revalidatie Impuls vzw","Centrum voor Ambulante Revalidatie Impuls","aankoop van bijzondere uitrusting: een nieuw computerpark: M365 licenties, Barracuda email en databeveiliging, keyboards en draadloze muizen voor het Centrum voor Ambulante Revalidatie Impuls in de Karel Lodewijk Dierickxstraat 30 in Gent",27152.18,"2025-04-05"]
["24BU124\nVAPH-Inge","Oost-Vlaanderen","Gent","Centrum voor Ambulante Revalidatie Impuls vzw","Centrum voor Ambulante Revalidatie Impuls","aankoop van bijzondere uitrusting: een nieuw computerpark: UPS, Ipads, Desktop, werkuren, onderhoud voor 5 jaar en de aankoop van een interactief spelsysteem (Tovertafel) voor het Centrum voor Ambulante Revalidatie Impuls in de Karel Lodewijk Dierickxstraat 30 in Gent",35728.36,"2025-04-05"]
["24BU129\nVAPH-Inge","Oost-Vlaanderen","Deinze","Centrum voor Ambulante Revalidatie Ter Kouter vzw","Centrum voor Ambulante Revalidatie Ter Kouter","aankoop van bijzondere uitrusting: actualisatie van de huidige ICT-infrastructuur van een deel van therapeutische equipe en aankoop van een gehoorrevalidatietoestel Aurical Hit Box voor het Centrum voor Ambulante Revalidatie Ter Kouter in Aaltersesteenweg 2 in Deinze",17201.439999999999,"2025-04-05"]
[null,null,null,null,null,"Totaal goedgekeurde investeringen",{"$f":"SUM(G4,G15,G20,G25)","v":2723916.5203646664}]
[]
[null,"Overzicht per provincie "]
[null,"Antwerpen",{"$f":"SUMIF($B$4:$B$36,B38,$G$4:$G$36)","v":1980231.7079916385}]
[null,"Limburg",{"$f":"SUMIF($B$4:$B$36,B39,$G$4:$G$36)","v":150844.9070419528}]
[null,"Oost-Vlaanderen",{"$f":"SUMIF($B$4:$B$36,B40,$G$4:$G$36)","v":367953.96190674778}]
[null,"Vlaams-Brabant",{"$f":"SUMIF($B$4:$B$36,B41,$G$4:$G$36)","v":5221.8034735695692}]
[null,"West-Vlaanderen",{"$f":"SUMIF($B$4:$B$36,B42,$G$4:$G$36)","v":188464.17526939462}]
[null,"Totaal",{"$f":"SUM(C38:C42)","v":2692716.5556833032}]
[]
[null,"Brussel",{"$f":"SUMIF($B$4:$B$36,B45,$G$4:$G$36)","v":31199.964681363082}]
[null,"Algemeen totaal",{"$f":"SUM(C43,C45)","v":2723916.5203646664}]

{"sheet":"Infrastructuurforfait PMH","index":1,"n_rows":18,"n_cols":9,"rows_kept":18,"cut":false,"hidden":false,"merged":[[0,0,0,8],[1,0,1,8],[8,1,8,2]]}
["Goedgekeurde projecten persoonsvolgende financiering van 1 januari tot 31 december 2025"]
["Infrastructuurforfait personen met een handicap: Deze betoelagingsvorm is van toepassing voor de meerderjarige personen met een handicap. Een voorziening kan een vraag indienen tot het bekomen van een akkoord infrastructuurforfait voor een beoogde investering. Zodra desbetreffende infrastructuur in gebruik wordt genomen, start de uitbetaling van het infrastructuurforfait. De grootte van dat forfait is afhankelijk van de zorgzwaarte van de personen met een handicap die gebruik maakt van de infrastructuur en wordt aangepast aan de bezetting. Rekening houdend met voorgaande elementen wordt het forfait voor onbepaalde duur jaarlijks uitbetaald zolang er bezetting is. Het forfait moet door de voorziening als korting doorgerekend worden naar de persoon met een handicap. Het forfait wordt jaarlijks aangerekend op de VIPA-kredieten op het moment van uitbetaling. Het overzicht bevat de voorzieningen die in 2025 een akkoord infrastructuurforfait verkregen. De betaling van subsidies zal dus voor deze projecten starten vanaf ingebruikname."]
["Dossiernummer","Provincie","Gemeente","Initiatiefnemer","Voorziening","Project","Globale investeringskost all-in \n(BTW + studiekosten) \ndoor de voorziening opgegeven","Verleende infrastructuurforfaits","Goedkeuring"]
["PH907-W-IDB","West-Vlaanderen","Brugge","Viro vzw","Viro","nieuwbouw voor volwassenen met een verstandelijke beperking met 20 kamers en 4 studio' s voor 24 gebruikers met woonondersteuning (capaciteitsvervanging) en voor 26,91 gebruikers met collectieve zorg in de Koning Albert I-laan 188 in Brugge (Sint-Michiels-Brugge)",5287047,101022.11,"2025-02-10"]
["PH905-A-IDB","Antwerpen","Zoersel","Emmaüs vzw","Monnikenheide-Spectrum","nieuwbouw en verbouwing voor 27 gebruikers met woonondersteuning en collectieve zorg en voor 26,65 gebruikers met dagondersteuning, project Gildenhuis, in de Stationsstraat 57-59-61 in Essen ",9300000,159532.16,"2025-03-24"]
["PH909-O-IDB","Oost-Vlaanderen","Sint-Niklaas","De Klokke vzw","De Klokke","nieuwbouw voor 8 gebruikers met woonondersteuning en collectieve zorg en voor 2 gebruikers met dagondersteuning (allemaal capaciteitsuitbreiding) in de Meerstraat 39 in Stekene",1913934,35687.519999999997,"2025-03-24"]
[null,null,null,null,null,"Totaal goedgekeurde investeringen",null,{"$f":"SUM(H4:H6)","v":296241.79000000004}]
[]
[null,"Overzicht per provincie "]
[null,"Antwerpen",{"$f":"SUMIF($B$4:$B$8,B10,$H$4:$H$8)","v":159532.16}]
[null,"Limburg",{"$f":"SUMIF($B$4:$B$8,B11,$H$4:$H$8)","v":0}]
[null,"Oost-Vlaanderen",{"$f":"SUMIF($B$4:$B$8,B12,$H$4:$H$8)","v":35687.519999999997}]
[null,"Vlaams-Brabant",{"$f":"SUMIF($B$4:$B$8,B13,$H$4:$H$8)","v":0}]
[null,"West-Vlaanderen",{"$f":"SUMIF($B$4:$B$8,B14,$H$4:$H$8)","v":101022.11}]
[null,"Totaal",{"$f":"SUM(C10:C14)","v":296241.78999999998}]
[]
[null,"Brussel",{"$f":"SUMIF($B$4:$B$8,B17,$H$4:$H$8)","v":0}]
[null,"Algemeen totaal",{"$f":"SUM(C17,C15)","v":296241.78999999998}]

{"sheet":"Blad16","index":2,"n_rows":0,"n_cols":0,"rows_kept":0,"cut":false,"hidden":true,"merged":[]}

{"sheet":"Blad17","index":3,"n_rows":0,"n_cols":0,"rows_kept":0,"cut":false,"hidden":true,"merged":[]}

{"sheet":"Blad1","index":4,"n_rows":0,"n_cols":0,"rows_kept":0,"cut":false,"hidden":true,"merged":[]}